Cogmind - Beta 16 @@@ ROGUE MODE // 2025.12.21 @ 17:25:16 Player: Oneirical Result: Destroyed by J5-ELE(R) with Subdweller Laser Performance ------------- Evolutions (0) 0 Regions Visited (2) 400 Robots Destroyed (9) 45 Value Destroyed (225) 225 Prototype IDs (0) 0 Alien Tech Used (0) 0 Bonus (0) 0 TOTAL SCORE: 670 Bonus ------- None Cogmind --------- Core Integrity 0/250 Matter 272/300 Energy 123/125 System Corruption 9% Temperature Cool (6) Movement Rolling (110) Location -10/Subcaves Parts ------- > --- POWER (1) -------- Light Ion Engine > --- PROPULSION (2) --- Subdweller Monowheel Subdweller Monowheel > --- UTILITY (2) ------ (None) > --- WEAPON (2) ------- Subdweller Laser Battle Rifle > --- INVENTORY (5) ---- Subdweller Power Source Spiked Treads Wheel Medium Matter Pod (100) Mining Laser Peak State ------------ > --- POWER ------------ Light Ion Engine > --- PROPULSION ------- Wheel Subdweller Monowheel > --- UTILITY ---------- Scrap Shield > --- WEAPON ----------- EM Pulse Gun Battle Rifle > --- INVENTORY -------- Wheel Small Storage Unit Medium Matter Pod Mining Laser [Rating: 11] Favorites ----------- Power Light Ion Engine Engine Light Ion Engine Propulsion Wheel Treads Spiked Treads Wheel Wheel Utility Small Storage Unit Device Terrain Scanner Storage Small Storage Unit Protection Scrap Shield Weapon Light Assault Rifle Energy Gun Small Laser Ballistic Gun Light Assault Rifle Build | -11 -10 -10 ------- Run | Yrd Mat Sub Slots Evolved . | . . . Power . | . . . Propulsion . | . . . Utility . | . . . Weapon . | . . . Parts Attached 16 | 6 1 9 Power 1 | 1 . . Engine 1 | 1 . . Core . | . . . Reactor . | . . . Propulsion 6 | 2 . 4 Treads 1 | . . 1 Leg . | . . . Wheel 5 | 2 . 3 Hover . | . . . Flight . | . . . Utility 3 | 1 1 1 Device 1 | . 1 . Storage 1 | 1 . . Processor . | . . . Hackware . | . . . Protection 1 | . . 1 Artifact . | . . . Weapon 6 | 2 . 4 Energy Gun 4 | 1 . 3 Energy Cannon . | . . . Ballistic Gun 2 | 1 . 1 Ballistic Cannon . | . . . Launcher . | . . . Special Weapon . | . . . Impact Weapon . | . . . Slashing Weapon . | . . . Piercing Weapon . | . . . Special Melee Weapon . | . . . Unidentified Prototypes . | . . . Corrupted Parts 2 | . . 2 System Corruption 7 | . . 7 Parts Lost 7 | . . 7 Power . | . . . Propulsion 2 | . . 2 Utility 2 | . . 2 Weapon 3 | . . 3 Highest Loss Streak 4 | . . 4 To Critical Strikes . | . . . Average Backups 4 | . 4 4 Power . | . . . Propulsion . | . . 1 Utility . | . . 1 Weapon 2 | . 2 2 Tool/Special . | . . . Unused Backups 5 | . . 5 Power 2 | . . 2 Propulsion 1 | . . 1 Utility 1 | . . 1 Weapon 1 | . . 1 Tool/Special . | . . . Average Slot Usage (%) 85 | . 98 77 Engine 14 | . 14 14 Wheel 25 | . 28 24 Device 7 | . 12 3 Storage 8 | . 14 4 Protection 2 | . . 3 Energy Gun 12 | . 14 10 Ballistic Gun 13 | . 14 13 Peak Build Rating 11 | 6 7 11 Average Rating 7 | 4 6 8 On Entrance 4 | . 6 7 Avg Prop Armor Cover (%) 17 | . . 17 Naked Turns . | . . . Heaviest Build 25 | 10 11 25 Greatest Support 40 | 20 20 40 Greatest Overweight (x) 2 | . . 2 Average Overweight (x) . | . . . Largest Inventory Capacity 8 | 8 8 8 Average Capacity 6 | 7 8 5 Most Carried 5 | . 5 5 Average Carried 4 | . 4 4 Final Capacity 8 | 8 8 5 Final Carried 5 | . 5 5 Class Distribution -------------------- 100% | Mutant Dominant Class ---------------- Mutant | -10/Materials Mutant | -10/Subcaves Resources | -11 -10 -10 ----------- Run | Yrd Mat Sub Matter Collected 539 | 148 204 187 Remotely . | . . . Salvage Created 330 | . 101 229 Parts 23 | . 10 13 Haulers Intercepted . | . . . Recyclers Shooed . | . . . Parts Field Recycled . | . . . Retrieved Matter . | . . . Parts Self-Destructed 13 | . . 13 Prevented . | . . . Parts Restored . | . . . Kills | -11 -10 -10 ------- Run | Yrd Mat Sub Combat Hostiles Destroyed 8 | . 4 4 Guns 7 | . 4 3 Classes Destroyed 5 | . 3 2 Worker 1 | . 1 . Swarmer 3 | . 3 . Grunt 1 | . 1 . Artisan 1 | . . 1 Subdweller 4 | . . 4 Best Kill Streak 3 | . 3 2 Combat Bots Only 3 | . 3 2 Max Kills in Single Turn 2 | . 2 1 Gunslinging 1 | . 1 . Exploded . | . . . Melee . | . . . Uniques/NPCs Destroyed . | . . . Combat | -11 -10 -10 -------- Run | Yrd Mat Sub Hostile Shots Fired 72 | . 18 54 Missed 22 | . 2 20 Hits 50 | . 16 34 Projectile 50 | . 16 34 Critical Strikes 1 | . . 1 Damage Taken 923 | . 143 780 Core 271 | . 9 262 Absorbed by Shields . | . . . Core Remaining (%) 100 | 100 . . Volleys Fired 56 | . 14 42 Largest 2 | . 2 2 Hottest 85 | . 60 85 Shots Fired 96 | . 27 69 Gun 96 | . 27 69 Cannon . | . . . Launcher . | . . . Special . | . . . Kinetic 49 | . 14 35 Thermal 33 | . 13 20 Explosive . | . . . Electromagnetic 14 | . . 14 Robot Hit Streak 12 | . 4 12 Robot Miss Streak 3 | . 3 2 Penetration Max . | . . . Secondary Targets 1 | . 1 . Max Gunslinging Chain 1 | . 1 . Shots Hit Robots 54 | . 13 41 Core Hits 15 | . 6 9 Critical Kills . | . . . Critical Parts Destroyed . | . . . Critical Strikes 2 | . . 2 Corrupt 2 | . . 2 Melee Attacks . | . . . Impact . | . . . Slashing . | . . . Piercing . | . . . Sneak Attacks . | . . . Combat Hostiles . | . . . Follow-up Attacks . | . . . Damage Inflicted 647 | . 125 522 Guns 647 | . 125 522 Cannons . | . . . Explosions . | . . . Melee . | . . . Ramming . | . . . Kinetic 285 | . 50 235 Thermal 228 | . 75 153 Explosive . | . . . Electromagnetic 134 | . . 134 Impact . | . . . Slashing . | . . . Piercing . | . . . Highest Corruption 9 | . 2 9 Average Corruption 3 | . 2 4 Corruption Purged . | . . . Corruption Blocked . | . . . Effects 14 | . 1 13 Message Errors 1 | . . 1 Matter Fused 4 | . . 4 Heat Flow Errors 2 | . 1 1 Energy Discharges 2 | . . 2 Parts Rejected 2 | . . 2 Alerts 1 | . . 1 Weapon Failures 2 | . . 2 Overload Shots . | . . . Overflow Damage . | . . . Projectiles . | . . . Explosions . | . . . Melee . | . . . Knockbacks . | . . . Impact . | . . . Kinetic . | . . . Secondary . | . . . Self-Inflicted Damage . | . . . Shots . | . . . Rammed . | . . . Targets Rammed . | . . . Kicked . | . . . Crushed . | . . . Highest Temperature 179 | . 179 121 Average Temperature 29 | . 38 14 Received Heat Transfer 168 | . 30 138 Siege Activations . | . . . Martial Activations . | . . . Shielding Activations . | . . . Robots Disrupted . | . . . Combat Hostiles . | . . . Robots Corrupted 1 | . . 1 Combat Hostiles 1 | . . 1 Parts Fried 1 | . . 1 Impact Corruptions . | . . . Robots Melted . | . . . Combat Hostiles . | . . . Parts Melted 3 | . . 3 Heat Transferred 450 | . 175 275 Parts Sabotaged . | . . . Parts Stolen . | . . . Parts Stripped . | . . . Power Chain Reactions . | . . . Alert | -11 -10 -10 ------- Run | Yrd Mat Sub Maximum Alert Level . | . . . Low Security (%) 100 | 100 100 . Level 1 . | . . . Level 2 . | . . . Level 3 . | . . . Level 4 . | . . . Level 5 . | . . . High Security . | . . . Max Security . | . . . Peak Influence 85 | . 85 . Initial . | . . . Average 29 | . 33 . Influence Increases 120 | . 120 . Destroy 0b10 Robot/C 80 | . 80 . Destroy 0b10 Robot/NC 5 | . 5 . Destroy Leader 20 | . 20 . Lose Combat Pursuer 15 | . 15 . Influence Decreases 120 | . 120 . Time Decay 120 | . 120 . Squads Dispatched 1 | . 1 . Investigation . | . . . Extermination . | . . . Reinforcement 1 | . 1 . Assault . | . . . Garrison . | . . . Intercept . | . . . Searches Triggered . | . . . Construction Impeded . | . . . Haulers Reinforced . | . . . Active Scanning Responses . | . . . Cargo Convoy Interrupts . | . . . Stealth | -11 -10 -10 --------- Run | Yrd Mat Sub Distress Signals . | . . . Communications Jammed . | . . . Distress Signals . | . . . Times Spotted 22 | . 10 12 Peak Tracking Total 4 | . 4 3 Tactical Retreats 4 | . 1 3 Traps | -11 -10 -10 ------- Run | Yrd Mat Sub Traps Triggered 2 | . 1 1 Indirectly . | . . . Trap Hack Attempts . | . . . Triggered . | . . . Disarmed . | . . . Reprogrammed . | . . . Reused . | . . . Traps Extracted . | . . . Installed . | . . . Triggered . | . . . Machines | -11 -10 -10 ---------- Run | Yrd Mat Sub Machines Disabled . | . . . Max in Single Turn . | . . . Machines Repaired . | . . . Machines Dismantled . | . . . Machines Sabotaged . | . . . Overloaded Fab Kills . | . . . Hacking | -11 -10 -10 --------- Run | Yrd Mat Sub Machines Accessed . | . . . Terminals . | . . . Fabricators . | . . . Repair Stations . | . . . Recycling Units . | . . . Scanalyzers . | . . . Garrison Access . | . . . Total Hacks . | . . . Successful . | . . . Failed . | . . . Catastrophic . | . . . Database Lockouts . | . . . Manual . | . . . Terminals . | . . . Fabricators . | . . . Repair Stations . | . . . Recycling Units . | . . . Scanalyzers . | . . . Garrison Access . | . . . Terminal Hacks . | . . . Fabricator Hacks . | . . . Repair Station Hacks . | . . . Recycling Unit Hacks . | . . . Scanalyzer . | . . . Garrison Access Hacks . | . . . Unauthorized Hacks . | . . . Terminals . | . . . Fabricators . | . . . Repair Stations . | . . . Recycling Units . | . . . Scanalyzers . | . . . Garrison Access . | . . . Data Cores Recovered . | . . . Used . | . . . Hacking Detections . | . . . Full Trace Events . | . . . Feedback Events . | . . . Feedback Blocked . | . . . Robot Schematics Acquired . | . . . Robots Built . | . . . Authchips . | . . . Time . | . . . Total Robot Build Rating . | . . . Part Schematics Acquired . | . . . Parts Built . | . . . Authchips . | . . . Time . | . . . Total Part Build Rating . | . . . Part Studies Acquired . | . . . Parts Repaired . | . . . Time . | . . . Parts Recycled . | . . . Recycled Matter . | . . . Retrieved Matter . | . . . Retrieved Components . | . . . Parts Scanalyzed . | . . . Part Schematics Acquired . | . . . Parts Damaged . | . . . Bothacking | -11 -10 -10 ------------ Run | Yrd Mat Sub Used RIF Installer . | . . . Robots Hacked . | . . . Non-combat . | . . . Combat . | . . . Robot Hacks Applied . | . . . Relay Couplers Released . | . . . Fabnet Peak Effective % . | . . . Robots Rewired . | . . . Allies Hacked . | . . . Hacks Repelled . | . . . Allies | -11 -10 -10 -------- Run | Yrd Mat Sub Total Allies . | . . . Largest Group . | . . . Highest-Rated Group . | . . . Highest-Rated Ally . | . . . Total Orders . | . . . Ally Attacks . | . . . Total Damage . | . . . Kills . | . . . Allies Corrupted . | . . . Allies Melted . | . . . Intel | -11 -10 -10 ------- Run | Yrd Mat Sub Active Infowar (turns) 400 | . 286 114 Terrain 400 | . 286 114 Robot Analysis Total . | . . . Derelict Logs Recovered . | . . . Drone Launches . | . . . Drone Recoveries . | . . . Exploration | -11 -10 -10 ------------- Run | Yrd Mat Sub Turns Passed 805 | 44 313 448 Spaces Moved 485 | 45 126 314 Core 2 | 2 . . Treads . | . . . Legs . | . . . Wheels 483 | 43 126 314 Hover . | . . . Flight . | . . . Fastest Speed 50 | 50 80 80 Average Speed 90 | 78 80 95 Slowest Speed 110 | 80 80 110 Overloaded Moves . | . . . Propulsion Burnouts . | . . . Robots Hopped . | . . . Potential Cave-ins . | . . . Cave-ins Triggered . | . . . Exploration Rate (%) 23 | 3 35 32 Regions Visited 2 Branch Regions 1 Pre-discovered Areas . | . . . Known Exits Taken . | . . . Unknown Exits Taken 2 | 1 1 . Scrap Searched 2 | . . 2 Spaces Dug . | . . . Terrain Destroyed 2 | . . 2 Melee . | . . . Projectile 2 | . . 2 AOE . | . . . Terrain Rammed . | . . . Walls Destroyed . | . . . Machines Disabled . | . . . Actions | -11 -10 -10 --------- Run | Yrd Mat Sub Total 758 | 50 313 395 Wait 187 | . 168 19 Move 483 | 44 125 314 Hop . | . . . Pick Up 9 | . 5 4 Fast Attach 12 | 6 1 5 Attach 3 | . . 3 Detach 1 | . . 1 Swap 3 | . . 3 Drop 3 | . . 3 Fire 56 | . 14 42 Melee . | . . . Ram . | . . . Kick . | . . . Crush . | . . . Escape Stasis . | . . . Rewire . | . . . Trap . | . . . Miscellaneous 1 | . . 1 Route ------- -11/Scrapyard -10/Materials (discovered 2 exits: [*Min] / [*Sub]) -10/Subcaves History --------- Turn | Location | Event 8 | -11/Scrapyard | Discovered new exit (range 16) 45 | -11/Scrapyard | Entered Materials 111 | -10/Materials | Discovered new exit (range 15) 255 | -10/Materials | Discovered new exit (range 6) 302 | -10/Materials | Build established: Mutant 358 | -10/Materials | Entered Subcaves 359 | -10/Subcaves | Approached by a straggling Scientist 519 | -10/Subcaves | Lost 4 parts (1n1u2w) 607 | -10/Subcaves | Ambushed by Subdwellers from Twisted Machinery 640 | -10/Subcaves | Core integrity fell below 50% 653 | -10/Subcaves | Core integrity fell below 20% 680 | -10/Subcaves | Lost 3 parts (1n1u1w) 806 | -10/Subcaves | Destroyed by J5-ELE(R) with Subdweller Laser Last Messages --------------- 00713_ Acquired 10 matter. 00716_ Acquired 3 matter. 00731_ Integrated Corrupted Sub. Laser (+5). 00740_ System corrupted: IFF burst signal emitted. 00741_ Sub. Laser melted. 00741_ Disposable Heat Sink melted. 00741_ 3V-B3K(R) destroyed. 00741_ QZ-16D(u) builds Twisted Machinery. 00749_ 1U-1IB(R) destroyed. 00756_ Acquired Sub. Monowheel. 00757_ RGPCYKO%LAKTR16XSAYXZGQSXB TWHM0N 00758_ Dropped Sub. Monowheel. 00759_ Subatomizers dissect the Sub. Laser. 00762_ Acquired 69 matter. 00767_ System corrupted: Sub. Laser failed to cycle. 00773_ System corrupted: Matter fused (-6). 00800_ System corrupted: Battle Rifle rejected. 00800_ Acquired Battle Rifle. Map ----- +----------------------------------------------------+ | ?????????????????????????????????????????????????? | | ?????????????????????????????????????????????????? | | ?????????????????????????????????????????????????? | | ?????????????????????????????????????????????????? | | ?????????????????????????????????????????????????? | | ?????????????????????????????????????????????????? | | ?????????????????????????????????????????????????? | | ?????????????????????????????????????????????????? | | ?????????????????????????????????????????????????? | | ?????????????????????????????????????????????????? | | ?????????????????????????????????????????????????? | | ?????????????????????????????????????????????????? | | ?????????????????????????????????????????????????? | | ?????????????????????????????????????????????????? | | ?????????????????????????????????????????????????? | | ?????????????????????????????????????????????????? | | ????????????????????????????? ???????????????????? | | ???????????????????????????? ???????????????????? | | ???????????????????????????? ????????????????????? | | ??????????????????????????## ????????????????????? | | ???????????????????????### "?????????????????????? | | ???????????????????????# "?????????????????????? | | ???????????????????????# ??????????????????????? | | ???????????????????????# ??????????????????????? | | ??????????????????????## ########???????????????? | | ?????????????????????## @ "# # ##??????????????? | | ???????????????###?###" " "" ?????????????? | | ????????????####[#?#"""" "" """" ?????????????? | | ?####??######!%%&#?#"" " "### ???????????????? | | ## #### &&##&&####" " ##??????????????????? | | # ## !%#### ###= ####"" #???????????????????? | | #### ###??###?###&#"" # ##??????????????????? | | ##??###??????????## """ RR##?????????????????? | | #????????????????## "##????????????????? | | ##?????????????????## # " ####?????????????? | | ????????????????????##### " ## ??????? | | ????????????????????????# "" ??????? | | ????????????????????????## " ??????? | | ?????????????????????????# " ##?????????? | | ?????????????????????????##### #??????????? | | ?????????????????????????????? #??????????? | | ?????????????????????????????? # #??????????? | | ?????????????????????????????? #######??????????? | | ??????????????????????????????? #????????????????? | | ???????????????????????????????##????????????????? | | ?????????????????????????????????????????????????? | | ?????????????????????????????????????????????????? | | ?????????????????????????????????????????????????? | | ?????????????????????????????????????????????????? | | ?????????????????????????????????????????????????? | +----------------------------------------------------+ Best States ------------- Heat Dissipation 25 Energy Generation 10 Energy Capacity 125 Matter Stores 300 Matter Capacity 300 Sight Range 16 Terrain Scan Range 14 Terrain Scan Density 10 Armor Coverage 800 Evasion (%) 44 Item Schematics ----------------- None Robot Schematics ------------------ None Fabricated ------------ Nothing Repaired ---------- Nothing Studied --------- None Alien Tech Used ----------------- None Achievements -------------- None Challenges ------------ None Game ------ Seed VortexHardlightSword Manual? 0 Play Time 00:07:12 Cumulative 43.7 hours Start 2025.12.21 @ 17:19:15 End 2025.12.21 @ 17:25:16 Sessions 1 Manual Loads 0 Difficulty Rogue Special Mode None Game No. 38 Rogue 36 Adventurer 2 Explorer 0 Win Type - Total 1 Types 0/0/0/1/0/0/0/0/0/0 Lore% 31 Gallery% 50 Achievement% 42 Wizard Run 0 Options --------- Layout 2 ASCII 0 Keyboard 1 Movement Numpad Keybinds 0 Fullscreen 1 Font 32/SmallcapsGlow Map View 50x49 Zoom Use 0% Tactical HUD 1 Map Filters NONE Filters NONE Steam 0 RUN: 4642ab40-bf71-4f4f-990c-9248c43c7086